[Event "34th MPL National U12 Chess-ch 2022"]
[Site "Mysore"]
[Date "2022.04.13"]
[Round "10.5"]
[White "Aansh Nandan Nerurkar"]
[Black "Nimay Agrawal"]
[Result "1/2-1/2"]
[ECO "B01"]
[WhiteElo "1564"]
[BlackElo "1366"]
[Annotator "NA RC"]
[PlyCount "166"]
[EventDate "2022.04.09"]
[EventCountry "IND"]
[SourceTitle "playchess.com"]
[Source "ChessBase"]
[SourceQuality "1"]
[TimeControl "5400+30"]

1. e4 {[%emt 0:00:02]} d5 {[%emt 0:00:12]} 2. exd5 {[%emt 0:00:35]} Qxd5 {[%emt 0:00:07]} 3. Nc3 {[%emt 0:00:51]} Qa5 {[%emt 0:00:16]} 4. d4 {[%emt 0:00:09]} c6 {[%emt 0:00:06]} 5. Bc4 {[%emt 0:00:45]} Nf6 {[%emt 0:01:28]} 6. Nf3 {[%emt 0:00:29]} Bf5 {[%emt 0:00:20]} 7. Bd2 {[%emt 0:00:26]} Qc7 {[%emt 0:00:37]} 8. Ne5 {[%emt 0:00:21]} e6 {[%emt 0:00:17]} 9. g4 {[%emt 0:00:48]} Bg6 {[%emt 0:00:07]} 10. h4 {[%emt 0:00:36]} Nbd7 {[%emt 0:00:20]} 11. Qe2 {[%emt 0:02:50]} Nxe5 {[%emt 0:01:46]} 12. dxe5 {[%emt 0:00:11]} Nd5 {[%emt 0:00:21]} 13. h5 {[%emt 0:06:28]} Bxc2 {[%emt 0:00:20]} 14. Rc1 {[%emt 0:00:27]} Nxc3 {[%emt 0:00:16]} 15. Bxc3 {[%emt 0:00:06]} Ba4 {[%emt 0:00:15]} 16. b3 {[%emt 1:23:26]} Bb5 {[%emt 0:00:16]} 17. Bxb5 {[%emt 0:00:00]} cxb5 {[%emt 0:00:09]} 18. Qxb5+ {[%emt 0:00:00]} Qd7 {[%emt 0:00:08]} 19. Qxd7+ {[%emt 0:00:00]} Kxd7 {[%emt 0:00:04]} 20. O-O {[%emt 0:00:00]} Ba3 {[%emt 0:01:34]} 21. Rcd1+ {[%emt 0:00:00]} Ke7 {[%emt 0:01:37]} 22. Rd4 {[%emt 0:00:00]} Rac8 {[%emt 0:05:44]} 23. Bb4+ {[%emt 0:00:00]} Bxb4 {[%emt 0:00:14]} 24. Rxb4 {[%emt 0:00:00]} b6 {[%emt 0:00:55]} 25. a4 {[%emt 0:00:00]} Rc5 {[%emt 0:00:48]} 26. Re1 {[%emt 0:00:00]} Rd8 {[%emt 0:01:43]} 27. Re2 {[%emt 0:00:00]} Rdd5 {[%emt 0:05:00]} 28. Rbe4 {[%emt 0:00:00]} Rc3 {[%emt 0:05:31]} 29. R2e3 {[%emt 0:00:00]} Rd1+ {[%emt 0:01:16]} 30. Kg2 {[%emt 0:00:00]} Rcc1 {[%emt 0:01:38]} 31. Rb4 {[%emt 0:00:00]} Rd5 {[%emt 0:01:05]} 32. Ree4 {[%emt 0:00:00]} Rcc5 {[%emt 0:00:53]} 33. Rbc4 {[%emt 0:00:00]} a5 {[%emt 0:14:18]} 34. f3 {[%emt 0:00:00]} Rd3 {[%emt 0:05:06]} 35. Rxc5 {[%emt 0:00:00]} bxc5 {[%emt 0:00:05]} 36. Rc4 {[%emt 0:10:00]} Rd5 {[%emt 0:00:07]} 37. Re4 {[%emt 0:00:00]} Kd7 {[%emt 0:07:51]} 38. Kg3 {[%emt 0:00:00]} Kc6 {[%emt 0:00:37]} 39. Rf4 {[%emt 0:00:00]} Rd7 {[%emt 0:00:28]} 40. Kf2 {[%emt 0:00:00]} Rb7 {[%emt 0:01:29]} 41. Ke2 {[%emt 0:00:00]} Kd5 {[%emt 0:00:39]} 42. Kd2 {[%emt 0:00:00]} Kxe5 {[%emt 0:00:21]} 43. Re4+ {[%emt 0:00:00]} Kd5 {[%emt 0:00:39]} 44. Kc3 {[%emt 0:00:00]} Rb4 {[%emt 0:01:47]} 45. Re1 {[%emt 0:00:00]} e5 {[%emt 0:02:40]} 46. Rd1+ {[%emt 0:00:00]} Rd4 {[%emt 0:00:24]} 47. Rf1 {[%emt 0:00:00]} f6 {[%emt 0:00:21]} 48. h6 {[%emt 0:00:00]} g6 {[%emt 0:02:55]} 49. Re1 {[%emt 0:00:00]} Ke6 {[%emt 0:01:54]} 50. Re2 {[%emt 0:00:00]} f5 {[%emt 0:02:29]} 51. gxf5+ {[%emt 0:00:00]} Kxf5 {[%emt 0:00:05]} 52. Re1 {[%emt 0:00:00]} Kf4 {[%emt 0:04:21]} 53. Re2 {[%emt 0:00:00]} Kf5 {[%emt 0:01:56]} 54. Re1 {[%emt 0:00:00]} Ke6 {[%emt 0:01:08]} 55. Re3 {[%emt 0:00:00]} Kd5 {[%emt 0:00:30]} 56. Re1 {[%emt 0:00:00]} c4 {[%emt 0:02:41]} 57. bxc4+ {[%emt 0:00:00]} Rxc4+ {[%emt 0:00:04]} 58. Kb3 {[%emt 0:00:00]} Rb4+ {[%emt 0:00:04]} 59. Ka3 {[%emt 0:00:00]} Rh4 {[%emt 0:00:50]} 60. Rd1+ {[%emt 0:00:00]} Ke6 {[%emt 0:00:40]} 61. Re1 {[%emt 0:00:00]} Kf5 {[%emt 0:00:22]} 62. Kb3 {[%emt 0:13:00]} Rxh6 {[%emt 0:29:16]} 63. Kc4 {[%emt 0:00:00]} Rh3 {[%emt 0:00:00]} 64. Rf1 {[%emt 0:00:00]} Kf4 {[%emt 0:00:00]} 65. Kb5 {[%emt 0:00:00]} Rxf3 {[%emt 0:00:00]} 66. Rh1 {[%emt 0:00:00]} h5 {[%emt 0:00:00]} 67. Kxa5 {[%emt 0:00:00]} e4 {[%emt 0:00:00]} 68. Kb4 {[%emt 0:00:00]} e3 {[%emt 0:00:00]} 69. Kc3 {[%emt 0:00:00]} Kg3 {[%emt 0:00:00]} 70. Kd3 {[%emt 0:00:00]} h4 {[%emt 0:00:00]} 71. Ke2 {[%emt 0:00:00]} Rf6 {[%emt 0:00:00]} 72. Rg1+ {[%emt 0:00:00]} Kf4 {[%emt 0:00:00]} 73. Rf1+ {[%emt 0:00:00]} Kg5 {[%emt 0:00:00]} 74. Rg1+ {[%emt 0:00:00]} Kh5 {[%emt 0:00:00]} 75. Kxe3 {[%emt 0:00:00]} Ra6 {[%emt 0:06:30]} 76. Ra1 {[%emt 0:00:00]} h3 {[%emt 0:00:00]} 77. a5 {[%emt 0:00:00]} g5 {[%emt 0:00:00]} 78. Kf3 {[%emt 0:00:00]} g4+ {[%emt 0:00:00]} 79. Kg3 {[%emt 0:00:00]} Rc6 {[%emt 0:00:00]} 80. a6 {[%emt 0:00:00]} Rc3+ {[%emt 0:00:00]} 81. Kh2 {[%emt 0:00:00]} Rc2+ {[%emt 0:00:00]} 82. Kh1 {[%emt 0:00:00]} Rc8 {[%emt 0:00:00]} 83. a7 {[%emt 0:00:00]} Ra8 {[%emt 0:00:00]} 1/2-1/2

[Event "34th MPL National U12 Chess-ch 2022"]
[Site "Mysore"]
[Date "2022.04.13"]
[Round "10.6"]
[White "Sathvik Adiga"]
[Black "Haridev S"]
[Result "1/2-1/2"]
[ECO "B92"]
[WhiteElo "1562"]
[BlackElo "1458"]
[Annotator "NA RC"]
[PlyCount "85"]
[EventDate "2022.04.09"]
[EventCountry "IND"]
[SourceTitle "playchess.com"]
[Source "ChessBase"]
[SourceQuality "1"]
[TimeControl "5400+30"]

1. e4 {[%emt 0:00:05]} c5 {[%emt 0:00:29]} 2. Nf3 {[%emt 1:31:25]} d6 {[%emt 0:00:26]} 3. d4 {[%emt 0:00:00]} cxd4 {[%emt 0:00:09]} 4. Nxd4 {[%emt 0:00:00]} Nf6 {[%emt 0:00:11]} 5. Nc3 {[%emt 0:00:00]} a6 {[%emt 0:00:22]} 6. Be2 {[%emt 0:00:00]} e5 {[%emt 0:00:10]} 7. Nb3 {[%emt 0:00:00]} Be6 {[%emt 0:00:20]} 8. Be3 {[%emt 0:00:00]} Be7 {[%emt 0:00:08]} 9. Qd3 {[%emt 0:00:00]} O-O {[%emt 0:00:34]} 10. O-O {[%emt 0:00:00]} Nbd7 {[%emt 0:00:53]} 11. Nd5 {[%emt 0:00:00]} Bxd5 {[%emt 0:00:36]} 12. exd5 {[%emt 0:00:00]} Nb6 {[%emt 0:01:07]} 13. c4 {[%emt 0:00:00]} Rc8 {[%emt 0:00:29]} 14. Rac1 {[%emt 0:00:00]} Na4 {[%emt 0:02:16]} 15. Nd2 {[%emt 0:00:00]} Nc5 {[%emt 0:00:45]} 16. Qb1 {[%emt 0:00:00]} g6 {[%emt 0:15:38]} 17. Nb3 {[%emt 0:00:00]} b6 {[%emt 0:09:05]} 18. Nd2 {[%emt 0:00:00]} Nfd7 {[%emt 0:06:40]} 19. b4 {[%emt 0:00:00]} Nb7 {[%emt 0:00:26]} 20. Qd3 {[%emt 0:00:00]} f5 {[%emt 0:03:08]} 21. f3 {[%emt 0:00:00]} Re8 {[%emt 0:11:41]} 22. Nb3 {[%emt 0:00:00]} Bg5 {[%emt 0:10:05]} 23. a3 {[%emt 0:00:00]} e4 {[%emt 0:08:48]} 24. fxe4 {[%emt 0:00:00]} Rxe4 {[%emt 0:00:52]} 25. Bxg5 {[%emt 0:00:00]} Qxg5 {[%emt 0:00:03]} 26. Nd4 {[%emt 0:00:00]} Ne5 {[%emt 0:08:09]} 27. Qc3 {[%emt 0:00:00]} b5 {[%emt 0:03:33]} 28. Ne6 {[%emt 0:00:00]} Qe7 {[%emt 0:02:58]} 29. Qb2 {[%emt 0:02:46]} bxc4 {[%emt 0:04:31]} 30. a4 {[%emt 0:02:31]} Nd8 {[%emt 0:00:55]} 31. Nf4 {[%emt 0:02:29]} c3 {[%emt 0:02:55]} 32. Rxc3 {[%emt 0:04:41]} Qa7+ {[%emt 0:00:07]} 33. Kh1 {[%emt 0:00:23]} Qd4 {[%emt 0:00:17]} 34. Rc2 {[%emt 0:00:54]} Rxc2 {[%emt 0:01:19]} 35. Qxc2 {[%emt 0:00:32]} Rxf4 {[%emt 0:00:09]} 36. Qc8 {[%emt 0:00:40]} Rxf1+ {[%emt 0:00:07]} 37. Bxf1 {[%emt 0:00:03]} Nef7 {[%emt 0:02:36]} 38. Qxa6 {[%emt 0:00:22]} Qxb4 {[%emt 0:01:35]} 39. a5 {[%emt 0:00:17]} Qb8 {[%emt 0:04:31]} 40. Qb5 {[%emt 0:01:12]} Qa7 {[%emt 0:00:24]} 41. a6 {[%emt 0:00:11]} Kg7 {[%emt 0:00:55]} 42. Qa5 {[%emt 0:01:24]} h5 {[%emt 0:00:30]} 43. Bb5 {[%emt 0:00:52]} 1/2-1/2

[Event "34th MPL National U12 Chess-ch 2022"]
[Site "Mysore"]
[Date "2022.04.14"]
[Round "11.1"]
[White "Goutham Krishna H"]
[Black "Gandhi, Aakash"]
[Result "1-0"]
[ECO "D35"]
[WhiteElo "1541"]
[BlackElo "1698"]
[Annotator "NA RC"]
[PlyCount "83"]
[EventDate "2022.04.09"]
[EventCountry "IND"]
[SourceTitle "playchess.com"]
[Source "ChessBase"]
[SourceQuality "1"]
[TimeControl "5400+30"]

1. Nf3 {[%emt 0:00:09]} d5 {[%emt 0:00:57]} 2. d4 {[%emt 1:31:21]} Nf6 {[%emt 0:00:24]} 3. c4 {[%emt 0:00:00]} c6 {[%emt 0:00:10]} 4. Nc3 {[%emt 0:00:00]} e6 {[%emt 0:00:03]} 5. cxd5 {[%emt 0:00:00]} exd5 {[%emt 0:00:04]} 6. Bg5 {[%emt 0:00:00]} h6 {[%emt 0:00:55]} 7. Bh4 {[%emt 0:00:00]} Bf5 {[%emt 0:00:34]} 8. e3 {[%emt 0:00:00]} Nbd7 {[%emt 0:00:15]} 9. Bd3 {[%emt 0:00:00]} Bxd3 {[%emt 0:01:47]} 10. Qxd3 {[%emt 0:00:00]} Be7 {[%emt 0:00:14]} 11. O-O {[%emt 0:00:00]} O-O {[%emt 0:01:26]} 12. Rab1 {[%emt 0:00:00]} a5 {[%emt 0:00:11]} 13. a3 {[%emt 0:00:00]} Re8 {[%emt 0:00:18]} 14. Qc2 {[%emt 0:00:00]} b5 {[%emt 0:01:54]} 15. Rfc1 {[%emt 0:00:00]} Nb6 {[%emt 0:01:16]} 16. a4 {[%emt 0:00:00]} Rc8 {[%emt 0:02:32]} 17. Qd1 {[%emt 0:00:00]} b4 {[%emt 0:02:26]} 18. Ne2 {[%emt 0:00:00]} Ne4 {[%emt 0:00:58]} 19. Bxe7 {[%emt 0:00:00]} Qxe7 {[%emt 0:00:16]} 20. b3 {[%emt 0:00:00]} Nd7 {[%emt 0:00:31]} 21. Rc2 {[%emt 0:00:00]} Ndf6 {[%emt 0:01:18]} 22. h3 {[%emt 0:00:00]} g5 {[%emt 0:05:36]} 23. Ne5 {[%emt 0:00:00]} Nd7 {[%emt 0:02:44]} 24. Nxd7 {[%emt 0:00:00]} Qxd7 {[%emt 0:00:30]} 25. Rbc1 {[%emt 0:00:00]} Kg7 {[%emt 0:01:32]} 26. f3 {[%emt 0:00:00]} Nd6 {[%emt 0:04:24]} 27. Qd3 {[%emt 0:00:00]} Qf5 {[%emt 0:12:03]} 28. Qd2 {[%emt 0:00:00]} Qd7 {[%emt 0:00:53]} 29. Ng3 {[%emt 0:00:00]} Re6 {[%emt 0:11:55]} 30. Qd3 {[%emt 0:00:00]} Kg8 {[%emt 0:00:55]} 31. e4 {[%emt 0:00:00]} dxe4 {[%emt 0:04:31]} 32. fxe4 {[%emt 0:00:00]} f5 {[%emt 0:01:24]} 33. exf5 {[%emt 0:00:00]} Rf6 {[%emt 0:00:33]} 34. Nh5 {[%emt 0:00:00]} Rf7 {[%emt 0:03:53]} 35. g4 {[%emt 0:00:00]} Ne8 {[%emt 0:03:10]} 36. d5 {[%emt 0:00:00]} Nf6 {[%emt 0:00:22]} 37. Nxf6+ {[%emt 0:00:00]} Rxf6 {[%emt 0:00:13]} 38. Qe4 {[%emt 0:00:00]} Re8 {[%emt 0:00:46]} 39. Qc4 {[%emt 0:00:00]} cxd5 {[%emt 0:01:42]} 40. Qd4 {[%emt 0:00:00]} Qd6 {[%emt 0:00:27]} 41. Kg2 {[%emt 0:00:00]} Qg3+ {[%emt 0:00:15]} 42. Kxg3 {[%emt 0:00:00]} 1-0

[Event "34th MPL National U12 Chess-ch 2022"]
[Site "Mysore"]
[Date "2022.04.14"]
[Round "11.2"]
[White "Adireddy Arjun"]
[Black "Muthukumar, Mukesh"]
[Result "1-0"]
[ECO "B90"]
[WhiteElo "1796"]
[BlackElo "1287"]
[Annotator "NA RC"]
[PlyCount "135"]
[EventDate "2022.04.09"]
[EventCountry "IND"]
[SourceTitle "playchess.com"]
[Source "ChessBase"]
[SourceQuality "1"]
[TimeControl "5400+30"]

1. e4 {[%emt 0:00:02]} c5 {[%emt 0:00:10]} 2. Nf3 {[%emt 0:00:12]} d6 {[%emt 0:00:09]} 3. d4 {[%emt 0:00:10]} cxd4 {[%emt 0:00:07]} 4. Nxd4 {[%emt 0:00:06]} Nf6 {[%emt 0:00:12]} 5. Nc3 {[%emt 0:00:04]} a6 {[%emt 0:00:07]} 6. Be3 {[%emt 0:00:02]} e5 {[%emt 0:00:10]} 7. Nf3 {[%emt 0:00:03]} Be7 {[%emt 0:00:27]} 8. Bc4 {[%emt 0:00:07]} O-O {[%emt 0:00:51]} 9. O-O {[%emt 0:00:05]} Bg4 {[%emt 0:01:38]} 10. Qe2 {[%emt 0:13:01]} Qc7 {[%emt 0:02:16]} 11. Nd5 {[%emt 0:08:19]} Nxd5 {[%emt 1:29:53]} 12. Bxd5 {[%emt 0:00:04]} Nd7 {[%emt 0:00:00]} 13. Qd3 {[%emt 0:05:11]} Kh8 {[%emt 0:00:00]} 14. Nd2 {[%emt 0:01:35]} Rac8 {[%emt 0:00:00]} 15. Rac1 {[%emt 0:02:48]} Nb6 {[%emt 0:00:00]} 16. Bxb6 {[%emt 0:04:31]} Qxb6 {[%emt 0:00:00]} 17. Nc4 {[%emt 0:00:13]} Qc7 {[%emt 0:00:00]} 18. Ne3 {[%emt 0:00:18]} Be6 {[%emt 0:00:00]} 19. Qb3 {[%emt 0:12:15]} Qd7 {[%emt 0:00:00]} 20. Rcd1 {[%emt 0:11:58]} b5 {[%emt 0:00:00]} 21. c4 {[%emt 0:06:03]} Bg5 {[%emt 0:00:00]} 22. cxb5 {[%emt 0:34:23]} Bxe3 {[%emt 0:00:00]} 23. Qxe3 {[%emt 0:00:00]} axb5 {[%emt 0:00:00]} 24. Bxe6 {[%emt 0:00:00]} Qxe6 {[%emt 0:00:00]} 25. b3 {[%emt 0:00:00]} Rc5 {[%emt 0:00:00]} 26. Rd2 {[%emt 0:00:00]} Rfc8 {[%emt 0:00:00]} 27. Rfd1 {[%emt 0:00:00]} Rc2 {[%emt 0:00:00]} 28. h3 {[%emt 0:00:00]} Rxd2 {[%emt 0:00:09]} 29. Qxd2 {[%emt 0:00:00]} Rd8 {[%emt 0:00:48]} 30. Qb4 {[%emt 0:00:00]} Qd7 {[%emt 0:00:29]} 31. a4 {[%emt 0:00:00]} bxa4 {[%emt 0:00:25]} 32. bxa4 {[%emt 0:00:00]} Qc6 {[%emt 0:01:07]} 33. a5 {[%emt 0:00:00]} h6 {[%emt 0:00:58]} 34. Rb1 {[%emt 0:00:00]} Ra8 {[%emt 0:01:13]} 35. Rd1 {[%emt 0:00:00]} Ra6 {[%emt 0:00:59]} 36. g3 {[%emt 0:00:00]} Qc5 {[%emt 0:02:36]} 37. Qxc5 {[%emt 0:00:00]} dxc5 {[%emt 0:00:05]} 38. Ra1 {[%emt 0:00:00]} Kg8 {[%emt 0:00:15]} 39. Kf1 {[%emt 0:00:00]} Kf8 {[%emt 0:00:08]} 40. Ke2 {[%emt 0:00:00]} Ke7 {[%emt 0:00:10]} 41. Kd3 {[%emt 0:00:00]} Kd6 {[%emt 0:00:12]} 42. Kc4 {[%emt 0:00:00]} Kc6 {[%emt 0:00:12]} 43. g4 {[%emt 0:00:00]} f6 {[%emt 0:02:27]} 44. h4 {[%emt 0:00:00]} Ra7 {[%emt 0:01:34]} 45. a6 {[%emt 0:00:00]} Kb6 {[%emt 0:00:10]} 46. h5 {[%emt 0:00:00]} Kc6 {[%emt 0:00:23]} 47. f3 {[%emt 0:00:00]} Kb6 {[%emt 0:00:08]} 48. Ra2 {[%emt 0:00:00]} Kc6 {[%emt 0:00:16]} 49. Ra5 {[%emt 0:00:00]} Kb6 {[%emt 0:00:23]} 50. Rxc5 {[%emt 0:00:00]} Rxa6 {[%emt 0:00:45]} 51. Rc8 {[%emt 0:00:00]} Ra3 {[%emt 0:01:21]} 52. Kd5 {[%emt 0:00:01]} Rxf3 {[%emt 0:00:30]} 53. Rg8 {[%emt 0:00:02]} Rd3+ {[%emt 0:01:44]} 54. Ke6 {[%emt 0:00:05]} Re3 {[%emt 0:00:11]} 55. Rxg7 {[%emt 0:00:25]} Rxe4 {[%emt 0:00:09]} 56. Kxf6 {[%emt 0:00:05]} Kc6 {[%emt 0:01:17]} 57. Kf5 {[%emt 0:01:00]} Re1 {[%emt 0:00:18]} 58. Kg6 {[%emt 0:00:14]} Kd6 {[%emt 0:00:21]} 59. Kxh6 {[%emt 0:00:05]} e4 {[%emt 0:00:18]} 60. Rg6+ {[%emt 0:02:28]} Ke7 {[%emt 0:00:14]} 61. Ra6 {[%emt 0:00:49]} Rg1 {[%emt 0:00:45]} 62. g5 {[%emt 0:00:19]} Kf7 {[%emt 0:00:24]} 63. g6+ {[%emt 0:01:01]} Kf8 {[%emt 0:00:09]} 64. g7+ {[%emt 0:00:28]} Kf7 {[%emt 0:00:56]} 65. Ra8 {[%emt 0:00:11]} e3 {[%emt 0:01:19]} 66. Rf8+ {[%emt 0:00:02]} Ke7 {[%emt 0:00:10]} 67. g8=Q {[%emt 0:00:04]} Rxg8 {[%emt 0:00:19]} 68. Rxg8 {[%emt 0:00:02]} 1-0

[Event "34th MPL National U12 Chess-ch 2022"]
[Site "Mysore"]
[Date "2022.04.14"]
[Round "11.3"]
[White "Vivaan Vijay Saraogi"]
[Black "Reyan"]
[Result "1/2-1/2"]
[ECO "A45"]
[WhiteElo "1519"]
[BlackElo "1543"]
[Annotator "NA RC"]
[PlyCount "61"]
[EventDate "2022.04.09"]
[EventCountry "IND"]
[SourceTitle "playchess.com"]
[Source "ChessBase"]
[SourceQuality "1"]
[TimeControl "5400+30"]

1. d4 {[%emt 0:00:30]} Nf6 {[%emt 0:00:06]} 2. Bf4 {[%emt 0:00:15]} g6 {[%emt 0:00:08]} 3. Nc3 {[%emt 0:00:07]} d5 {[%emt 0:00:05]} 4. e3 {[%emt 0:00:06]} Bg7 {[%emt 0:00:07]} 5. h4 {[%emt 0:00:07]} O-O {[%emt 0:00:14]} 6. h5 {[%emt 0:00:06]} c5 {[%emt 0:00:10]} 7. hxg6 {[%emt 0:00:19]} hxg6 {[%emt 0:00:15]} 8. Qd2 {[%emt 0:00:23]} Nc6 {[%emt 0:00:16]} 9. O-O-O {[%emt 0:00:31]} Qa5 {[%emt 0:00:23]} 10. f3 {[%emt 0:02:12]} Nh5 {[%emt 0:01:20]} 11. Nge2 {[%emt 0:08:41]} Nxf4 {[%emt 0:02:01]} 12. Nxf4 {[%emt 0:00:12]} cxd4 {[%emt 0:00:24]} 13. exd4 {[%emt 0:00:07]} e5 {[%emt 0:00:33]} 14. Nfxd5 {[%emt 0:31:46]} exd4 {[%emt 0:00:24]} 15. Bc4 {[%emt 0:00:16]} dxc3 {[%emt 0:01:48]} 16. Qg5 {[%emt 0:00:30]} cxb2+ {[%emt 0:15:51]} 17. Kb1 {[%emt 0:00:09]} Bf5 {[%emt 0:00:25]} 18. Nf6+ {[%emt 0:16:47]} Bxf6 {[%emt 0:00:33]} 19. Qh6 {[%emt 0:00:17]} Bxc2+ {[%emt 0:11:15]} 20. Kxc2 {[%emt 0:00:08]} Qf5+ {[%emt 0:03:15]} 21. Rd3 {[%emt 0:00:07]} Nb4+ {[%emt 0:16:31]} 22. Kb1 {[%emt 0:00:10]} Qxd3+ {[%emt 0:03:34]} 23. Bxd3 {[%emt 0:00:09]} Rfd8 {[%emt 0:00:08]} 24. Bxg6 {[%emt 0:17:53]} fxg6 {[%emt 0:00:36]} 25. Qxg6+ {[%emt 0:00:06]} Bg7 {[%emt 0:00:06]} 26. Qe6+ {[%emt 0:00:14]} Kf8 {[%emt 0:00:08]} 27. Qf5+ {[%emt 0:00:13]} Kg8 {[%emt 0:00:27]} 28. Qh7+ {[%emt 0:00:20]} Kf8 {[%emt 0:00:17]} 29. Qf5+ {[%emt 0:00:09]} Kg8 {[%emt 0:00:27]} 30. Qh7+ {[%emt 0:00:11]} Kf8 {[%emt 0:00:06]} 31. Qf5+ {[%emt 0:00:09]} 1/2-1/2

[Event "34th MPL National U12 Chess-ch 2022"]
[Site "Mysore"]
[Date "2022.04.14"]
[Round "11.4"]
[White "Gaikwad Manas"]
[Black "Vaz, Ethan"]
[Result "0-1"]
[ECO "B99"]
[WhiteElo "1698"]
[BlackElo "1384"]
[Annotator "NA RC"]
[PlyCount "80"]
[EventDate "2022.04.09"]
[EventCountry "IND"]
[SourceTitle "playchess.com"]
[Source "ChessBase"]
[SourceQuality "1"]
[TimeControl "5400+30"]

1. e4 {[%emt 0:00:03]} c5 {[%emt 0:00:07]} 2. Nf3 {[%emt 0:00:04]} d6 {[%emt 0:00:05]} 3. d4 {[%emt 0:00:08]} cxd4 {[%emt 0:00:09]} 4. Nxd4 {[%emt 0:02:41]} Nf6 {[%emt 0:00:06]} 5. Nc3 {[%emt 0:00:03]} a6 {[%emt 0:00:16]} 6. Bg5 {[%emt 0:00:26]} e6 {[%emt 0:00:13]} 7. f4 {[%emt 0:00:04]} Be7 {[%emt 0:00:31]} 8. Qf3 {[%emt 0:00:09]} Qc7 {[%emt 0:00:35]} 9. O-O-O {[%emt 0:00:06]} Nbd7 {[%emt 0:00:48]} 10. g4 {[%emt 0:00:06]} b5 {[%emt 0:01:17]} 11. Bxf6 {[%emt 0:00:05]} Nxf6 {[%emt 0:01:24]} 12. g5 {[%emt 0:00:31]} Nd7 {[%emt 0:00:48]} 13. f5 {[%emt 0:00:34]} Bxg5+ {[%emt 0:04:51]} 14. Kb1 {[%emt 0:01:06]} Ne5 {[%emt 0:07:33]} 15. Qh5 {[%emt 0:02:20]} Qd8 {[%emt 0:07:48]} 16. Rg1 {[%emt 0:03:24]} Bf6 {[%emt 0:05:47]} 17. fxe6 {[%emt 0:01:34]} g6 {[%emt 0:04:16]} 18. exf7+ {[%emt 0:02:01]} Kxf7 {[%emt 0:02:30]} 19. Qe2 {[%emt 0:03:11]} Re8 {[%emt 0:11:35]} 20. Qf2 {[%emt 0:06:56]} Rf8 {[%emt 0:18:41]} 21. Qg3 {[%emt 0:05:06]} Bh4 {[%emt 0:05:09]} 22. Qe3 {[%emt 0:02:59]} Kg8 {[%emt 0:03:52]} 23. Nf5 {[%emt 0:06:14]} Bxf5 {[%emt 0:04:43]} 24. exf5 {[%emt 0:01:57]} Rxf5 {[%emt 0:01:33]} 25. Qe4 {[%emt 0:00:08]} Kh8 {[%emt 0:01:31]} 26. Bh3 {[%emt 0:03:02]} Rf8 {[%emt 0:03:48]} 27. Qd5 {[%emt 0:02:57]} Nc4 {[%emt 0:04:54]} 28. Ne4 {[%emt 0:01:58]} Bf6 {[%emt 0:01:39]} 29. Nxd6 {[%emt 0:01:33]} Ne3 {[%emt 0:01:17]} 30. Qc6 {[%emt 0:54:04]} Nxd1 {[%emt 0:00:39]} 31. Rxd1 {[%emt 0:00:00]} Qe7 {[%emt 0:00:52]} 32. Ne4 {[%emt 0:00:00]} Bg7 {[%emt 0:00:52]} 33. a3 {[%emt 0:00:00]} b4 {[%emt 0:01:08]} 34. axb4 {[%emt 0:00:00]} Qxb4 {[%emt 0:00:08]} 35. c3 {[%emt 0:00:00]} Qb3 {[%emt 0:00:31]} 36. Rd2 {[%emt 0:00:00]} Rae8 {[%emt 0:00:41]} 37. Rc2 {[%emt 0:00:00]} a5 {[%emt 0:00:29]} 38. Rc1 {[%emt 0:00:00]} Rb8 {[%emt 0:00:25]} 39. Rc2 {[%emt 0:00:00]} Rfe8 {[%emt 0:01:29]} 40. Bf1 {[%emt 0:00:00]} Re6 {[%emt 0:00:48]} 0-1

[Event "34th MPL National U12 Chess-ch 2022"]
[Site "Mysore"]
[Date "2022.04.14"]
[Round "11.5"]
[White "Haridev S"]
[Black "Mrinmoy Rajkhowa"]
[Result "0-1"]
[ECO "B38"]
[WhiteElo "1458"]
[BlackElo "1634"]
[Annotator "NA RC"]
[PlyCount "100"]
[EventDate "2022.04.09"]
[EventCountry "IND"]
[SourceTitle "playchess.com"]
[Source "ChessBase"]
[SourceQuality "1"]
[TimeControl "5400+30"]

1. e4 {[%emt 0:00:27]} c5 {[%emt 0:00:04]} 2. Nf3 {[%emt 0:00:13]} d6 {[%emt 0:00:04]} 3. d4 {[%emt 0:00:07]} cxd4 {[%emt 0:00:06]} 4. Nxd4 {[%emt 0:00:15]} Nf6 {[%emt 0:00:06]} 5. f3 {[%emt 0:00:07]} a6 {[%emt 0:00:04]} 6. c4 {[%emt 0:00:11]} g6 {[%emt 0:00:16]} 7. Nc3 {[%emt 0:00:30]} Bg7 {[%emt 0:00:06]} 8. Be3 {[%emt 0:00:13]} Nc6 {[%emt 0:00:09]} 9. Qd2 {[%emt 0:01:07]} O-O {[%emt 0:00:05]} 10. Be2 {[%emt 0:00:20]} Bd7 {[%emt 0:00:28]} 11. O-O {[%emt 0:02:56]} Nxd4 {[%emt 0:00:41]} 12. Bxd4 {[%emt 0:00:42]} Bc6 {[%emt 0:00:08]} 13. a3 {[%emt 0:07:06]} Nd7 {[%emt 0:00:25]} 14. Bxg7 {[%emt 0:06:39]} Kxg7 {[%emt 0:00:05]} 15. b4 {[%emt 0:03:24]} Nf6 {[%emt 0:03:40]} 16. Qd4 {[%emt 0:02:43]} Kg8 {[%emt 0:13:50]} 17. Rfd1 {[%emt 0:02:37]} Qb8 {[%emt 0:13:40]} 18. Nd5 {[%emt 0:05:20]} Bxd5 {[%emt 0:01:29]} 19. cxd5 {[%emt 0:00:45]} Rc8 {[%emt 0:01:40]} 20. Rac1 {[%emt 0:03:41]} Nd7 {[%emt 0:11:12]} 21. f4 {[%emt 0:04:11]} Rc7 {[%emt 0:13:38]} 22. Rc3 {[%emt 0:08:56]} Qd8 {[%emt 0:05:49]} 23. Rdc1 {[%emt 0:17:27]} Rac8 {[%emt 0:01:40]} 24. a4 {[%emt 0:02:25]} Rxc3 {[%emt 0:08:13]} 25. Rxc3 {[%emt 0:00:02]} a5 {[%emt 0:05:38]} 26. bxa5 {[%emt 0:05:48]} Nc5 {[%emt 0:01:16]} 27. f5 {[%emt 0:11:44]} Qxa5 {[%emt 0:04:33]} 28. fxg6 {[%emt 0:00:20]} hxg6 {[%emt 0:03:13]} 29. h4 {[%emt 0:06:03]} Ra8 {[%emt 0:01:58]} 30. Bb5 {[%emt 0:00:10]} Nxe4 {[%emt 0:03:07]} 31. Re3 {[%emt 0:01:26]} f5 {[%emt 0:00:31]} 32. Rxe4 {[%emt 0:07:25]} fxe4 {[%emt 0:00:12]} 33. Qxe4 {[%emt 0:00:01]} Qc3 {[%emt 0:02:33]} 34. Qxg6+ {[%emt 0:00:43]} Qg7 {[%emt 0:00:02]} 35. Qe6+ {[%emt 0:01:01]} Kh8 {[%emt 0:00:19]} 36. h5 {[%emt 0:00:53]} Qd4+ {[%emt 0:01:30]} 37. Kh1 {[%emt 0:00:31]} Qd1+ {[%emt 0:00:07]} 38. Kh2 {[%emt 0:00:09]} Qxh5+ {[%emt 0:00:07]} 39. Kg1 {[%emt 0:00:25]} Qg5 {[%emt 0:00:58]} 40. Qe4 {[%emt 0:00:55]} Rf8 {[%emt 0:00:41]} 41. Bd3 {[%emt 0:00:30]} Qc1+ {[%emt 0:00:22]} 42. Kh2 {[%emt 0:00:14]} Qf4+ {[%emt 0:00:27]} 43. Kh3 {[%emt 0:00:35]} Qxe4 {[%emt 0:00:21]} 44. Bxe4 {[%emt 0:00:01]} Rf4 {[%emt 0:00:02]} 45. Bf3 {[%emt 0:00:01]} Rxa4 {[%emt 0:00:20]} 46. Bg4 {[%emt 0:00:28]} b5 {[%emt 0:00:15]} 47. Bd1 {[%emt 0:00:06]} Rd4 {[%emt 0:00:04]} 48. Be2 {[%emt 0:00:05]} Rxd5 {[%emt 0:00:07]} 49. Kg4 {[%emt 0:00:06]} b4 {[%emt 0:00:06]} 50. Bf3 {[%emt 0:00:11]} Rd4+ {[%emt 0:00:03]} 0-1